Cogmind - Beta 14 @@@ ROGUE MODE // 2024.10.08 @ 02:46:54 Player: Cereal Killer Result: Destroyed self with Subdweller Shrapnel Launcher Performance ------------- Evolutions (0) 0 Regions Visited (4) 800 Robots Destroyed (24) 120 Value Destroyed (507) 507 Prototype IDs (4) 80 Alien Tech Used (0) 0 Bonus (118) 118 TOTAL SCORE: 1625 Bonus ------- Follower Combat Kills 183 Friendly Fire -65 Cogmind --------- Core Integrity 0/250 Matter 256/300 Energy 199/200 System Corruption 1% Temperature Cool (12) Movement Rolling (117) Ox1 Location -7/Recycling Parts ------- > --- POWER (1) -------- Subdweller Power Source > --- PROPULSION (2) --- Compact Wheel Subdweller Monowheel > --- UTILITY (2) ------ Improved Heat Sink High-capacity Storage Unit > --- WEAPON (2) ------- Subdweller Machine Gun Subdweller Shrapnel Launcher > --- INVENTORY (20) --- Makeshift System Shield Shrapnel Trap SUBCON Basin (Full) Peak State ------------ > --- POWER ------------ Subdweller Power Source > --- PROPULSION ------- Wheel Subdweller Monowheel > --- UTILITY ---------- Improved Heat Sink High-capacity Storage Unit > --- WEAPON ----------- Subdweller Beam Cannon Subdweller Machine Gun > --- INVENTORY -------- Compact Wheel Makeshift System Shield Subdweller Shrapnel Launcher Shrapnel Trap SUBCON Basin [Rating: 31] Favorites ----------- Power Light Ion Engine Engine Light Ion Engine Propulsion Compact Wheel Wheel Compact Wheel Utility High-capacity Storage Unit Device Improved Heat Sink Storage High-capacity Storage Unit Protection Light Armor Plating Weapon Medium Laser Energy Gun Medium Laser Energy Cannon Subdweller Beam Cannon Ballistic Gun Subdweller Machine Gun Launcher Grenade Launcher Build | -11 -10 -10 -10 -7 ------- Run | Yrd Mat Min Sub Rec Slots Evolved . | . . . . . Power . | . . . . . Propulsion . | . . . . . Utility . | . . . . . Weapon . | . . . . . Parts Attached 20 | 4 3 4 6 3 Power 4 | . 1 1 2 . Engine 4 | . 1 1 2 . Core . | . . . . . Reactor . | . . . . . Propulsion 6 | 2 . 1 2 1 Treads . | . . . . . Leg . | . . . . . Wheel 6 | 2 . 1 2 1 Hover . | . . . . . Flight . | . . . . . Utility 4 | 1 . 2 . 1 Device 1 | . . . . 1 Storage 2 | 1 . 1 . . Processor . | . . . . . Hackware . | . . . . . Protection 1 | . . 1 . . Artifact . | . . . . . Weapon 6 | 1 2 . 2 1 Energy Gun 1 | . 1 . . . Energy Cannon 1 | . . . 1 . Ballistic Gun 2 | 1 . . 1 . Ballistic Cannon . | . . . . . Launcher 2 | . 1 . . 1 Special Weapon . | . . . . . Impact Weapon . | . . . . . Slashing Weapon . | . . . . . Piercing Weapon . | . . . . . Special Melee Weapon . | . . . . . Unidentified Prototypes . | . . . . . Parts Lost 10 | . 3 1 4 2 Power 3 | . 1 . 2 . Propulsion 4 | . 1 1 1 1 Utility 1 | . . . 1 . Weapon 2 | . 1 . . 1 Highest Loss Streak 2 | . 2 1 2 2 To Critical Strikes . | . . . . . Average Slot Usage (%) 90 | . 83 90 96 79 Engine 13 | . 12 14 13 14 Wheel 24 | . 27 19 26 18 Device 1 | . . . . 12 Storage 14 | . 14 14 14 14 Protection 8 | . . 14 12 . Energy Gun 10 | . 14 14 11 . Energy Cannon 1 | . . . 2 4 Ballistic Gun 8 | . 12 . 8 14 Launcher 5 | . 2 14 5 . Peak Build Rating 31 | 4 6 7 30 31 Average Rating 14 | 2 5 6 16 28 On Entrance 8 | . 4 4 6 28 Naked Turns . | . . . . . Heaviest Build 60 | 7 15 51 60 58 Greatest Support 36 | 26 26 32 30 36 Greatest Overweight (x) 5 | . . 3 5 2 Average Overweight (x) 1 | . . 2 1 1 Largest Inventory Capacity 20 | 8 8 20 20 20 Average Capacity 17 | 7 8 19 20 20 Most Carried 20 | 6 8 7 20 20 Average Carried 11 | 3 4 5 14 18 Final Capacity 20 | 8 8 20 20 20 Final Carried 19 | 6 8 7 19 17 Class Distribution -------------------- 86% | Mutant 13% | Scavenger-Mutant Dominant Class ---------------- Mutant | -10/Materials Mutant | -10/Mines Mutant | -10/Subcaves Mutant | -7/Recycling Resources | -11 -10 -10 -10 -7 ----------- Run | Yrd Mat Min Sub Rec Matter Collected 596 | 196 166 35 199 . Remotely . | . . . . . Salvage Created 599 | . 280 23 296 . Parts 48 | . 22 6 20 . Haulers Intercepted 2 | . 2 . . . Recyclers Shooed 2 | . 2 . . . Parts Field Recycled . | . . . . . Retrieved Matter . | . . . . . Parts Self-Destructed 18 | . . . 18 . Prevented . | . . . . . Kills | -11 -10 -10 -10 -7 ------- Run | Yrd Mat Min Sub Rec Combat Hostiles Destroyed 17 | . 6 1 10 . Guns 8 | . 5 . 3 . Cannons 3 | . . . 3 . AOE 6 | . 1 1 4 . Classes Destroyed 8 | . 4 2 2 . Builder 1 | . . 1 . . Tunneler 1 | . . 1 . . Hauler 2 | . 2 . . . Turret 2 | . . . 2 . Watcher 1 | . 1 . . . Swarmer 9 | . 3 1 5 . Grunt 3 | . 3 . . . Subdweller 5 | . . . 5 . Best Kill Streak 6 | . 3 2 6 . Combat Bots Only 4 | . 3 1 4 . Max Kills in Single Turn 2 | . 1 2 2 . Gunslinging . | . . . . . Exploded 2 | . 1 1 2 . Melee . | . . . . . Uniques/NPCs Destroyed . | . . . . . Combat | -11 -10 -10 -10 -7 -------- Run | Yrd Mat Min Sub Rec Hostile Shots Fired 150 | . 46 3 77 24 Missed 46 | . 11 1 22 12 Damage Taken 1140 | . 424 51 563 102 Core 256 | . 55 . 142 59 Absorbed by Shields . | . . . . . Core Remaining (%) 100 | 100 . . . . Volleys Fired 79 | . 38 3 36 2 Largest 2 | . 2 2 2 2 Hottest 110 | . 80 80 110 70 Shots Fired 143 | . 71 6 63 3 Gun 118 | . 70 3 43 2 Cannon 12 | . . . 12 . Launcher 13 | . 1 3 8 1 Special . | . . . . . Kinetic 59 | . 32 . 24 3 Thermal 72 | . 38 3 31 . Explosive 12 | . 1 3 8 . Electromagnetic . | . . . . . Robot Hit Streak 14 | . 7 1 14 1 Robot Miss Streak 4 | . 4 2 3 1 Penetration Max . | . . . . . Secondary Targets 1 | . . . 1 . Max Gunslinging Chain 1 | . . . 1 . Shots Hit Robots 75 | . 37 1 36 1 Core Hits 39 | . 15 5 18 1 Critical Kills 2 | . 1 . 1 . Critical Parts Destroyed . | . . . . . Critical Strikes 6 | . 5 . 1 . Burn 4 | . 4 . . . Destroy 2 | . 1 . 1 . Melee Attacks . | . . . . . Impact . | . . . . . Slashing . | . . . . . Piercing . | . . . . . Sneak Attacks . | . . . . . Combat Hostiles . | . . . . . Follow-up Attacks . | . . . . . Damage Inflicted 1821 | . 536 260 1004 21 Guns 917 | . 462 . 434 21 Cannons 190 | . . . 190 . Explosions 714 | . 74 260 380 . Melee . | . . . . . Ramming . | . . . . . Kinetic 552 | . 209 . 322 21 Thermal 555 | . 253 . 302 . Explosive 714 | . 74 260 380 . Electromagnetic . | . . . . . Impact . | . . . . . Slashing . | . . . . . Piercing . | . . . . . Highest Corruption 1 | . . . . 1 Average Corruption 1 | . . . . 1 Corruption Purged . | . . . . . Corruption Blocked . | . . . . . Effects 1 | . . . . 1 Data Loss (minor) 1 | . . . . 1 Overload Shots . | . . . . . Overflow Damage 69 | . . 38 31 . Projectiles 7 | . . . 7 . Explosions 62 | . . 38 24 . Melee . | . . . . . Knockbacks . | . . . . . Impact . | . . . . . Kinetic . | . . . . . Secondary . | . . . . . Self-Inflicted Damage 59 | . . 34 . 25 Shots 3 | . . 2 . 1 Rammed . | . . . . . Targets Rammed . | . . . . . Kicked . | . . . . . Crushed . | . . . . . Highest Temperature 160 | . 160 54 22 . Average Temperature 48 | . 55 24 12 . Received Heat Transfer 423 | . 207 . 198 18 Siege Activations . | . . . . . Robots Corrupted . | . . . . . Combat Hostiles . | . . . . . Parts Fried . | . . . . . Impact Corruptions . | . . . . . Robots Melted . | . . . . . Combat Hostiles . | . . . . . Parts Melted 1 | . 1 . . . Heat Transferred 1628 | . 1036 . 592 . Parts Sabotaged . | . . . . . Parts Stolen . | . . . . . Parts Stripped . | . . . . . Power Chain Reactions . | . . . . . Alert | -11 -10 -10 -10 -7 ------- Run | Yrd Mat Min Sub Rec Peak Influence 245 | . 245 170 . 82 Initial 87 | . . 87 . 60 Average 105 | . 134 129 . 56 Maximum Alert Level 1 | . 1 . . . Low Security (%) 90 | 100 76 100 . 100 Level 1 9 | . 23 . . . Level 2 . | . . . . . Level 3 . | . . . . . Level 4 . | . . . . . Level 5 . | . . . . . High Security . | . . . . . Max Security . | . . . . . Squads Dispatched 1 | . 1 . . . Investigation . | . . . . . Extermination . | . . . . . Reinforcement 1 | . 1 . . . Assault . | . . . . . Garrison . | . . . . . Intercept . | . . . . . Searches Triggered . | . . . . . Construction Impeded . | . . . . . Haulers Reinforced . | . . . . . Active Scanning Responses . | . . . . . Cargo Convoy Interrupts . | . . . . . Stealth | -11 -10 -10 -10 -7 --------- Run | Yrd Mat Min Sub Rec Distress Signals 1 | . 1 . . . Communications Jammed . | . . . . . Distress Signals . | . . . . . Times Spotted 36 | . 13 3 18 2 Peak Tracking Total 6 | . 4 3 6 1 Tactical Retreats 5 | . 1 1 2 1 Traps | -11 -10 -10 -10 -7 ------- Run | Yrd Mat Min Sub Rec Traps Triggered . | . . . . . Indirectly . | . . . . . Trap Hack Attempts . | . . . . . Triggered . | . . . . . Disarmed . | . . . . . Reprogrammed . | . . . . . Reused . | . . . . . Traps Extracted . | . . . . . Installed . | . . . . . Triggered . | . . . . . Most Traps Carried 1 | . . . 1 1 Machines | -11 -10 -10 -10 -7 ---------- Run | Yrd Mat Min Sub Rec Machines Disabled 3 | . . 1 2 . Max in Single Turn 1 | . . 1 1 . Machines Repaired . | . . . . . Machines Dismantled . | . . . . . Machines Sabotaged . | . . . . . Overloaded Fab Kills . | . . . . . Hacking | -11 -10 -10 -10 -7 --------- Run | Yrd Mat Min Sub Rec Machines Accessed 4 | . 1 . 2 1 Terminals 2 | . 1 . . 1 Fabricators . | . . . . . Repair Stations . | . . . . . Recycling Units . | . . . . . Scanalyzers . | . . . . . Garrison Access . | . . . . . Total Hacks 10 | . 2 . 3 5 Successful 6 | . 1 . 3 2 Failed 4 | . 1 . . 3 Catastrophic . | . . . . . Database Lockouts . | . . . . . Manual 3 | . . . . 3 Terminals 7 | . 2 . . 5 Fabricators . | . . . . . Repair Stations . | . . . . . Recycling Units . | . . . . . Scanalyzers . | . . . . . Garrison Access . | . . . . . Terminal Hacks 6 | . 1 . 3 2 Record 1 | . . . 1 . Robot Analysis 1 | . . . . 1 Prototype ID Bank 2 | . 1 . . 1 Open Door 1 | . . . 1 . Release Object 1 | . . . 1 . Fabricator Hacks . | . . . . . Repair Station Hacks . | . . . . . Recycling Unit Hacks . | . . . . . Scanalyzer . | . . . . . Garrison Access Hacks . | . . . . . Unauthorized Hacks . | . . . . . Terminals . | . . . . . Fabricators . | . . . . . Repair Stations . | . . . . . Recycling Units . | . . . . . Scanalyzers . | . . . . . Garrison Access . | . . . . . Data Cores Recovered . | . . . . . Used . | . . . . . Hacking Detections 2 | . 1 . . 1 Full Trace Events 1 | . . . . 1 Feedback Events 1 | . . . . 1 Corruption 1 | . . . . 1 Feedback Blocked . | . . . . . Robot Schematics Acquired . | . . . . . Robots Built . | . . . . . Authchips . | . . . . . Time . | . . . . . Total Robot Build Rating . | . . . . . Part Schematics Acquired . | . . . . . Parts Built . | . . . . . Authchips . | . . . . . Time . | . . . . . Total Part Build Rating . | . . . . . Parts Repaired . | . . . . . Time . | . . . . . Parts Recycled . | . . . . . Recycled Matter . | . . . . . Retrieved Matter . | . . . . . Retrieved Components . | . . . . . Parts Scanalyzed . | . . . . . Part Schematics Acquired . | . . . . . Parts Damaged . | . . . . . Bothacking | -11 -10 -10 -10 -7 ------------ Run | Yrd Mat Min Sub Rec Used RIF Installer . | . . . . . Robots Hacked . | . . . . . Non-combat . | . . . . . Combat . | . . . . . Robot Hacks Applied . | . . . . . Relay Couplers Released . | . . . . . Fabnet Peak Effective % . | . . . . . Robots Rewired . | . . . . . Allies Hacked . | . . . . . Hacks Repelled . | . . . . . Allies | -11 -10 -10 -10 -7 -------- Run | Yrd Mat Min Sub Rec Total Allies 3 | . . 3 . . Largest Group 3 | . . 3 3 . Highest-Rated Group 40 | . . 40 40 . Highest-Rated Ally 16 | . . 16 16 . Total Orders . | . . . . . Ally Attacks 46 | . . 1 45 . Total Damage 489 | . . . 489 . Kills 6 | . . . 6 . Allies Corrupted . | . . . . . Allies Melted . | . . . . . Intel | -11 -10 -10 -10 -7 ------- Run | Yrd Mat Min Sub Rec Robot Analysis Total 1 | . . . . 1 Derelict Logs Recovered 1 | . . 1 . . Drone Launches . | . . . . . Drone Recoveries . | . . . . . Exploration | -11 -10 -10 -10 -7 ------------- Run | Yrd Mat Min Sub Rec Turns Passed 1356 | 38 271 198 668 181 Spaces Moved 967 | 31 162 135 496 143 Core 8 | 8 . . . . Treads . | . . . . . Legs . | . . . . . Wheels 959 | 23 162 135 496 143 Hover . | . . . . . Flight . | . . . . . Fastest Speed 50 | 50 90 115 105 107 Average Speed 109 | 79 90 132 108 122 Slowest Speed 155 | 90 100 145 155 130 Overloaded Moves . | . . . . . Propulsion Burnouts . | . . . . . Robots Hopped . | . . . . . Cave-ins Triggered . | . . . . . Exploration Rate (%) 27 | 4 38 38 37 20 Regions Visited 4 Branch Regions 3 Pre-discovered Areas 1 | . . . 1 . Known Exits Taken . | . . . . . Unknown Exits Taken 4 | 1 1 1 1 . Scrap Searched 8 | . . . 8 . Spaces Dug . | . . . . . Terrain Destroyed 91 | . 3 17 56 15 Melee . | . . . . . Projectile 1 | . . . 1 . AOE 90 | . 3 17 55 15 Terrain Rammed . | . . . . . Walls Destroyed . | . . . . . Machines Disabled . | . . . . . Actions | -11 -10 -10 -10 -7 --------- Run | Yrd Mat Min Sub Rec Total 1126 | 44 215 149 569 149 Wait 20 | . 8 5 7 . Move 963 | 30 161 134 495 143 Hop . | . . . . . Pick Up 31 | 10 5 2 13 1 Fast Attach 1 | . . . 1 . Attach 18 | 4 3 4 4 3 Detach 1 | . . 1 . . Swap 1 | . . . 1 . Drop 12 | . . . 12 . Fire 79 | . 38 3 36 2 Melee . | . . . . . Ram . | . . . . . Kick . | . . . . . Crush . | . . . . . Escape Stasis . | . . . . . Rewire . | . . . . . Trap . | . . . . . Miscellaneous . | . . . . . Route ------- -11/Scrapyard -10/Materials (discovered 3 exits: [*Mat] / [*Min x2]) -10/Mines (discovered 2 exits: [*Mat] / *Sub) -10/Subcaves (discovered 2 exits: [*Mat] / *Rec) -7/Recycling History --------- Turn | Location | Event 14 | -11/Scrapyard | Discovered new exit (range 16) 39 | -11/Scrapyard | Entered Materials 130 | -10/Materials | Discovered new exit (range 14) 178 | -10/Materials | Discovered new exit (range 14) 237 | -10/Materials | Discovered new exit (range 11) 310 | -10/Materials | Entered Mines 323 | -10/Mines | Assisted by bots powering up and referring to "LRC-V3" 333 | -10/Mines | Met a Derelict bent on vengeance 335 | -10/Mines | Build established: Mutant 366 | -10/Mines | Learned 2 Materials zone layouts 373 | -10/Mines | Discovered new exit (range 6) 490 | -10/Mines | Discovered new exit (range 7) 508 | -10/Mines | Entered Subcaves 508 | -10/Subcaves | Accompanied by 3 allies 517 | -10/Subcaves | Discovered new exit (range 13) 736 | -10/Subcaves | Ambushed by Subdwellers from Twisted Machinery 833 | -10/Subcaves | A swath of the cavern ceiling suddenly collapsed 893 | -10/Subcaves | Found SUBCON Basin 949 | -10/Subcaves | Learned location of Zion (-7) 949 | -10/Subcaves | Met a Zionite searching for "candidates" 1001 | -10/Subcaves | Disturbed a concealed Subdweller 1120 | -10/Subcaves | Core integrity fell below 50% 1149 | -10/Subcaves | Discovered new exit (range 12) 1176 | -10/Subcaves | Entered Recycling 1231 | -7/Recycling | Core integrity fell below 20% 1357 | -7/Recycling | Destroyed self with Subdweller Shrapnel Launcher Last Messages --------------- 01230_ Sub. Beam Cannon destroyed. 01230_ Wheel destroyed. 01288_ Connecting with Terminal... 01288_ Current location identified: Recycling >>Prototypes Downloading prototype IDs... Enh. Autogun Imp. VTOL Module >>Analysis(G-47 Trooper) Downloading analysis... G-47 Trooper Tier: 3 The G-47 Trooper replaces the G-34's laser with a more effective particle gun. However, during prolonged confrontations the G-47 is prone to overheating as its upgraded weaponry produces more heat than the design can fully dissipate. Feedback: System corruption (+1%). 01294_ System corrupted: Component data lost. Map ----- +----------------------------------------------------+ | ?????????????????????????# ??# " """"" #??????? | | ?????????????????????????# #??# """"""""" #??????? | | ?????????????????????????# #??# """ """ #??????? | | ?????????????????????????# #??# #??????? | | ?????????????????????????# #####+###+######??????? | | ?????????????????????????# ###????????? | | ?????????????????????????#### ""#????????? | | ????????????????????????????# Y"#????????? | | ????????????????????????????# ""#????????? | | ????????????????????????????# ###????????? | | ????????????????????????????# #??????????? | | ????????????????????????????# #??????????? | | ?????????????????????????####+##+## #??????????? | | ?????????????????????????# # ###????????? | | ?????????????????????????# """ # ""#????????? | | ?????????????????????????# """ # Y"#????????? | | ?????????????????#???????# """ # ""?????????? | | ?????????????????# ??????# # ##?????????? | | ?????????????????# ?????# " " # ##?????????? | | ?????????????????# ????# "Y" + #?????????? | | ?????????????????# ???# """ # ##?????????? | | ?????????????????# ??# # #??????????? | | ?????????????????# #?#+######## #??????????? | | ?????????????????# ; # #??????# #??????????? | | ??????? ##### ;;;;# #??????# #??????????? | | ???????# Y @ #??????# #??????????? | | ??????? ;;;;;##??????# #??????????? | | ??????? ; ;?????????# #??????????? | | ???????? ###??????????# #??????????? | | ???????? ??????????????# #??????????? | | ?????????## ""????????????????# #??????????? | | ??????????#? ?"?????????????????# #??????????? | | ??????????????????????????????????# #??????????? | | ??????????????????????????????????# #??????????? | | ??????????????????????????????????# #??????????? | | ??????????????????????????????????# #??????????? | | ??????????????????????????????????# #??????????? | | ??????????????????????????????????# #??????????? | | ??????????????????????????????????# ###????????? | | ??????????????????????????????????# !#????????? | | ??????????????????????????????????# !!#????????? | | ??????????????????????????????????# !!#????????? | | ??????????????????????????????????# ###????????? | | ??????????????????????????????????# #??????????? | | ??????????????????????????????????# #??????????? | | ??????????????????????????????????# #??????????? | | ??????????????????????????????????# #??????????? | | ??????????????????????????????????# #??????????? | | ??????????????????????????????????# #??????????? | | ??????????????????????????????????# #??????????? | +----------------------------------------------------+ Best States ------------- Heat Dissipation 39 Energy Generation 15 Energy Capacity 250 Matter Stores 300 Matter Capacity 300 Sight Range 16 Terrain Scan Density 10 Armor Coverage 150 Evasion (%) 42 Item Schematics ----------------- None Robot Schematics ------------------ None Fabricated ------------ Nothing Alien Tech Used ----------------- None Achievements -------------- None Challenges ------------ None Game ------ Seed ChipKineticExtrapolator Manual? 0 Play Time 00:12:48 Cumulative 229.0 hours Start 2024.10.08 @ 02:35:00 End 2024.10.08 @ 02:46:54 Sessions 1 Manual Loads 0 Difficulty Rogue Special Mode None Game No. 187 Rogue 178 Adventurer 9 Explorer 0 Win Type - Total 1 Types 1/0/0/0/0/0/0/0/0 Lore% 78 Gallery% 73 Achievement% 60 Wizard Run 0 Options --------- Layout 1 ASCII 0 Keyboard 0 Movement Numpad Keybinds 0 Fullscreen 1 Font 24/Smallcaps Map View 50x35 Zoom Use 0% Tactical HUD 1 Map Filters NONE Filters NONE Steam 1 RUN: 276b527d-7743-46dd-961e-edfc72787f1e